[Event "TOP 12 FEMININ 2022 - Phase 1"]
[Site "MULHOUSE, France"]
[Date "2022.04.08"]
[Round "2.21"]
[White "KOSTENIUK  CLI, Alexandra"]
[Black "BULMAGA CAN, Irina"]
[Result "1-0"]
[TimeControl "90 min +30 secondes par coup"]
[WhiteElo "2516"]
[BlackElo "2379"]

1. d4 {[%clk 01:30:57]} {[%emt 00:00:02]} Nf6 {[%clk 01:30:42]} {[%emt
00:00:17]} 2. c4 {[%clk 01:31:22]} {[%emt 00:00:05]} e6 {[%clk 01:31:05]}
{[%emt 00:00:07]} 3. Nc3 {[%clk 01:31:49]} {[%emt 00:00:04]} Bb4 {[%clk
01:31:23]} {[%emt 00:00:12]} 4. e3 {[%clk 01:32:08]} {[%emt 00:00:11]} O-O
{[%clk 01:31:29]} {[%emt 00:00:24]} 5. Bd3 {[%clk 01:32:25]} {[%emt 00:00:13]}
d5 {[%clk 01:31:19]} {[%emt 00:00:39]} 6. a3 {[%clk 01:32:13]} {[%emt
00:00:43]} Bxc3+ {[%clk 01:31:40]} {[%emt 00:00:09]} 7. bxc3 {[%clk 01:32:42]}
{[%emt 00:00:02]} dxc4 {[%clk 01:31:53]} {[%emt 00:00:16]} 8. Bxc4 {[%clk
01:33:07]} {[%emt 00:00:04]} c5 {[%clk 01:32:01]} {[%emt 00:00:22]} 9. Ne2
{[%clk 01:33:00]} {[%emt 00:00:38]} Qc7 {[%clk 01:32:06]} {[%emt 00:00:24]} 10.
Ba2 {[%clk 01:33:01]} {[%emt 00:00:29]} b6 {[%clk 01:32:12]} {[%emt 00:00:24]}
11. O-O {[%clk 01:33:01]} {[%emt 00:00:31]} Ba6 {[%clk 01:31:53]} {[%emt
00:00:49]} 12. Re1 {[%clk 01:33:07]} {[%emt 00:00:24]} Rd8 {[%clk 01:28:27]}
{[%emt 00:03:55]} 13. Ng3 {[%clk 01:32:47]} {[%emt 00:00:50]} Nc6 {[%clk
01:28:23]} {[%emt 00:00:34]} 14. Bb2 {[%clk 01:31:31]} {[%emt 00:01:47]} Na5
{[%clk 01:19:56]} {[%emt 00:08:57]} 15. e4 {[%clk 01:31:01]} {[%emt 00:00:59]}
Bc4 {[%clk 01:14:46]} {[%emt 00:05:40]} 16. Bxc4 {[%clk 01:31:15]} {[%emt
00:00:16]} Nxc4 {[%clk 01:15:07]} {[%emt 00:00:09]} 17. Bc1 {[%clk 01:31:39]}
{[%emt 00:00:07]} cxd4 {[%clk 01:08:23]} {[%emt 00:07:13]} 18. cxd4 {[%clk
01:32:03]} {[%emt 00:00:06]} h6 {[%clk 00:42:54]} {[%emt 00:25:59]} 19. e5
{[%clk 01:24:18]} {[%emt 00:08:15]} Nh7 {[%clk 00:38:34]} {[%emt 00:04:50]} 20.
Qg4 {[%clk 01:20:17]} {[%emt 00:04:31]} Kh8 {[%clk 00:37:06]} {[%emt 00:01:58]}
21. Nh5 {[%clk 01:20:11]} {[%emt 00:00:36]} Rg8 {[%clk 00:36:28]} {[%emt
00:01:08]} 22. Rb1 {[%clk 01:15:05]} {[%emt 00:05:36]} Rac8 {[%clk 00:35:42]}
{[%emt 00:01:17]} 23. h4 {[%clk 01:12:22]} {[%emt 00:03:13]} Qd7 {[%clk
00:27:15]} {[%emt 00:08:57]} 24. Rb3 {[%clk 01:12:13]} {[%emt 00:00:38]} Rcd8
{[%clk 00:26:57]} {[%emt 00:00:48]} 25. Rd3 {[%clk 01:11:16]} {[%emt 00:01:27]}
b5 {[%clk 00:26:02]} {[%emt 00:01:26]} 26. Nf4 {[%clk 01:08:22]} {[%emt
00:03:23]} Nb6 {[%clk 00:20:21]} {[%emt 00:06:11]} 27. Bd2 {[%clk 00:59:58]}
{[%emt 00:08:54]} Nd5 {[%clk 00:20:04]} {[%emt 00:00:47]} 28. Nh5 {[%clk
00:59:31]} {[%emt 00:00:57]} Rc8 {[%clk 00:16:35]} {[%emt 00:03:59]} 29. Ng3
{[%clk 00:56:21]} {[%emt 00:03:41]} Ne7 {[%clk 00:15:31]} {[%emt 00:01:34]} 30.
Qf3 {[%clk 00:47:16]} {[%emt 00:09:35]} Rc4 {[%clk 00:11:04]} {[%emt 00:04:57]}
31. Qxf7 {[%clk 00:45:14]} {[%emt 00:02:32]} Rf8 {[%clk 00:11:07]} {[%emt
00:00:26]} 32. Qh5 {[%clk 00:45:39]} {[%emt 00:00:06]} Rxd4 {[%clk 00:10:03]}
{[%emt 00:01:34]} 33. Rxd4 {[%clk 00:46:03]} {[%emt 00:00:06]} Qxd4 {[%clk
00:10:28]} {[%emt 00:00:04]} 34. Be3 {[%clk 00:46:13]} {[%emt 00:00:19]} Qc3
{[%clk 00:08:23]} {[%emt 00:02:36]} 35. Rc1 {[%clk 00:45:05]} {[%emt 00:01:38]}
Qb2 {[%clk 00:08:17]} {[%emt 00:00:37]} 36. Qd1 {[%clk 00:38:34]} {[%emt
00:07:00]} Nd5 {[%clk 00:05:00]} {[%emt 00:03:47]} 37. Bd4 {[%clk 00:37:30]}
{[%emt 00:01:35]} Qa2 {[%clk 00:04:56]} {[%emt 00:00:33]} 38. Rc6 {[%clk
00:28:41]} {[%emt 00:09:20]} Qxa3 {[%clk 00:02:32]} {[%emt 00:02:54]} 39. Rxe6
{[%clk 00:25:26]} {[%emt 00:03:44]} Rc8 {[%clk 00:02:45]} {[%emt 00:00:17]} 40.
Qg4 {[%clk 00:25:40]} {[%emt 00:00:17]} Qc1+ {[%clk 00:02:53]} {[%emt
00:00:22]} 41. Kh2 {[%clk 00:25:50]} {[%emt 00:00:20]} Qf4 {[%clk 00:02:52]}
{[%emt 00:00:30]} 42. Qxf4 {[%clk 00:25:38]} {[%emt 00:00:43]} Nxf4 {[%clk
00:03:20]} {[%emt 00:00:02]} 43. Ra6 {[%clk 00:23:44]} {[%emt 00:02:24]} Nf8
{[%clk 00:03:19]} {[%emt 00:00:30]} 44. Nf5 {[%clk 00:23:42]} {[%emt 00:00:32]}
N4e6 {[%clk 00:01:43]} {[%emt 00:02:06]} 45. Nd6 {[%clk 00:21:28]} {[%emt
00:02:45]} Rc2 {[%clk 00:01:26]} {[%emt 00:00:46]} 46. Nxb5 {[%clk 00:21:24]}
{[%emt 00:00:34]} Rc4 {[%clk 00:00:58]} {[%emt 00:00:58]} 47. Bxa7 {[%clk
00:19:39]} {[%emt 00:02:16]} Rxh4+ {[%clk 00:01:25]} {[%emt 00:00:03]} 48. Kg3
{[%clk 00:19:26]} {[%emt 00:00:42]} g5 {[%clk 00:01:01]} {[%emt 00:00:54]} 49.
Nd6 {[%clk 00:18:27]} {[%emt 00:01:29]} Ng7 {[%clk 00:00:44]} {[%emt 00:00:48]}
50. Be3 {[%clk 00:16:37]} {[%emt 00:02:20]} Ng6 {[%clk 00:00:39]} {[%emt
00:00:35]} 51. e6 {[%clk 00:13:04]} {[%emt 00:04:03]} Ne7 {[%clk 00:00:37]}
{[%emt 00:00:32]} 52. Ra8+ {[%clk 00:12:30]} {[%emt 00:01:04]} Kh7 {[%clk
00:01:01]} {[%emt 00:00:05]} 53. Ra7 {[%clk 00:12:52]} {[%emt 00:00:08]} Nc6
{[%clk 00:00:37]} {[%emt 00:00:54]} 54. Rc7 {[%clk 00:11:21]} {[%emt 00:02:01]}
Ne5 {[%clk 00:00:36]} {[%emt 00:00:31]} 55. Nf5 {[%emt 00:02:58]} Ng6 {[%emt
00:00:10]} 56. Ra7 {[%emt 00:00:04]} Kg8 57. Nd6 {[%emt 00:00:15]} Kh8 58. Ra6
{[%emt 00:00:02]} Ne5 {[%emt 00:00:03]} 1-0

[Event "TOP 12 FEMININ 2022 - Phase 1"]
[Site "MULHOUSE, France"]
[Date "2022.04.08"]
[Round "2.22"]
[White "BENSDORP-DE LABACA CAN, Marlies"]
[Black "KASHLINSKAYA  CLI, Alina"]
[Result "0-1"]
[TimeControl "90 min +30 secondes par coup"]
[WhiteElo "2234"]
[BlackElo "2490"]

1. d4 {[%clk 01:30:58]} {[%emt 00:00:01]} Nf6 {[%clk 01:30:52]} {[%emt
00:00:08]} 2. c4 {[%clk 01:31:23]} {[%emt 00:00:05]} g6 {[%clk 01:31:16]}
{[%emt 00:00:06]} 3. Nc3 {[%clk 01:31:49]} {[%emt 00:00:04]} Bg7 {[%clk
01:31:39]} {[%emt 00:00:07]} 4. e4 {[%clk 01:32:14]} {[%emt 00:00:05]} d6
{[%clk 01:32:03]} {[%emt 00:00:06]} 5. Bd3 {[%clk 01:32:41]} {[%emt 00:00:03]}
O-O {[%clk 01:32:10]} {[%emt 00:00:23]} 6. Nge2 {[%clk 01:33:05]} {[%emt
00:00:06]} Nc6 {[%clk 01:32:20]} {[%emt 00:00:20]} 7. O-O {[%clk 01:33:29]}
{[%emt 00:00:07]} Nd7 {[%clk 01:32:27]} {[%emt 00:00:22]} 8. Bc2 {[%clk
01:33:39]} {[%emt 00:00:20]} e5 {[%clk 01:32:25]} {[%emt 00:00:32]} 9. d5
{[%clk 01:34:04]} {[%emt 00:00:05]} Nd4 {[%clk 01:32:11]} {[%emt 00:00:44]} 10.
Nxd4 {[%clk 01:34:28]} {[%emt 00:00:06]} exd4 {[%clk 01:32:36]} {[%emt
00:00:05]} 11. Ne2 {[%clk 01:34:51]} {[%emt 00:00:07]} Ne5 {[%clk 01:22:59]}
{[%emt 00:10:07]} 12. Nxd4 {[%clk 01:34:40]} {[%emt 00:00:41]} Nxc4 {[%clk
01:23:19]} {[%emt 00:00:10]} 13. Rb1 {[%clk 01:34:53]} {[%emt 00:00:17]} Re8
{[%clk 01:22:46]} {[%emt 00:01:02]} 14. h3 {[%clk 01:32:03]} {[%emt 00:03:21]}
Bd7 {[%clk 01:07:37]} {[%emt 00:15:39]} 15. b3 {[%clk 01:29:37]} {[%emt
00:02:57]} Nb6 {[%clk 01:07:56]} {[%emt 00:00:10]} 16. a4 {[%clk 01:11:22]}
{[%emt 00:18:45]} c6 {[%clk 00:53:20]} {[%emt 00:15:07]} 17. a5 {[%clk
01:08:31]} {[%emt 00:03:20]} c5 {[%clk 00:53:25]} {[%emt 00:00:25]} 18. Ne2
{[%clk 01:05:26]} {[%emt 00:03:35]} Nc8 {[%clk 00:53:05]} {[%emt 00:00:50]} 19.
Bd2 {[%clk 01:04:22]} {[%emt 00:01:33]} b6 {[%clk 00:49:14]} {[%emt 00:04:22]}
20. axb6 {[%clk 00:56:50]} {[%emt 00:08:03]} Nxb6 {[%clk 00:47:39]} {[%emt
00:02:05]} 21. Bd3 {[%clk 00:55:23]} {[%emt 00:01:57]} a5 {[%clk 00:44:23]}
{[%emt 00:03:46]} 22. Bc3 {[%clk 00:46:40]} {[%emt 00:09:13]} Bxc3 {[%clk
00:38:50]} {[%emt 00:06:02]} 23. Nxc3 {[%clk 00:46:40]} {[%emt 00:00:30]} Qf6
{[%clk 00:38:41]} {[%emt 00:00:39]} 24. Qc2 {[%clk 00:46:01]} {[%emt 00:01:10]}
Rec8 {[%clk 00:37:33]} {[%emt 00:01:38]} 25. Bb5 {[%clk 00:43:17]} {[%emt
00:03:14]} c4 {[%clk 00:29:21]} {[%emt 00:08:42]} 26. b4 {[%clk 00:37:54]}
{[%emt 00:05:52]} axb4 {[%clk 00:27:09]} {[%emt 00:02:42]} 27. Rxb4 {[%clk
00:38:19]} {[%emt 00:00:05]} Bxb5 {[%clk 00:25:27]} {[%emt 00:02:12]} 28. Nxb5
{[%clk 00:36:48]} {[%emt 00:02:01]} h5 {[%clk 00:19:21]} {[%emt 00:06:36]} 29.
Rfb1 {[%clk 00:35:48]} {[%emt 00:01:31]} c3 {[%clk 00:16:38]} {[%emt 00:03:13]}
30. Nxd6 {[%clk 00:35:15]} {[%emt 00:01:03]} Nxd5 {[%clk 00:16:51]} {[%emt
00:00:16]} 31. Nxc8 {[%clk 00:32:14]} {[%emt 00:03:31]} Nxb4 {[%clk 00:17:01]}
{[%emt 00:00:20]} 32. Rxb4 {[%clk 00:32:32]} {[%emt 00:00:12]} Rxc8 {[%clk
00:17:09]} {[%emt 00:00:21]} 33. Rb3 {[%clk 00:29:30]} {[%emt 00:03:33]} Qd4
{[%clk 00:16:49]} {[%emt 00:00:50]} 34. Kf1 {[%clk 00:25:04]} {[%emt 00:04:57]}
Qc4+ {[%clk 00:17:13]} {[%emt 00:00:06]} 35. Kg1 {[%clk 00:25:17]} {[%emt
00:00:16]} Qxb3 {[%clk 00:17:31]} {[%emt 00:00:12]} 0-1

[Event "TOP 12 FEMININ 2022 - Phase 1"]
[Site "MULHOUSE, France"]
[Date "2022.04.08"]
[Round "2.23"]
[White "BENMESBAH CLI, Natacha"]
[Black "SABIANI  CAN, Chjara"]
[Result "1-0"]
[TimeControl "90 min +30 secondes par coup"]
[WhiteElo "2244"]
[BlackElo "1793"]

1. e4 {[%clk 01:30:58]} {[%emt 00:00:01]} d5 {[%clk 01:30:51]} {[%emt
00:00:10]} 2. exd5 {[%clk 01:31:03]} {[%emt 00:00:25]} Qxd5 {[%clk 01:31:14]}
{[%emt 00:00:06]} 3. Nc3 {[%clk 01:31:17]} {[%emt 00:00:17]} Qa5 {[%clk
01:31:16]} {[%emt 00:00:27]} 4. Bc4 {[%clk 01:30:35]} {[%emt 00:01:12]} Nf6
{[%clk 01:30:11]} {[%emt 00:01:34]} 5. d3 {[%clk 01:29:57]} {[%emt 00:01:08]}
c5 {[%clk 01:30:25]} {[%emt 00:00:16]} 6. Nf3 {[%clk 01:27:36]} {[%emt
00:02:51]} e6 {[%clk 01:28:18]} {[%emt 00:02:37]} 7. O-O {[%clk 01:18:04]}
{[%emt 00:10:03]} Nc6 {[%clk 01:27:28]} {[%emt 00:01:20]} 8. Bf4 {[%clk
01:17:01]} {[%emt 00:01:33]} a6 {[%clk 01:24:13]} {[%emt 00:03:45]} 9. a4
{[%clk 01:14:49]} {[%emt 00:02:42]} Be7 {[%clk 01:21:39]} {[%emt 00:03:04]} 10.
d4 {[%clk 01:05:26]} {[%emt 00:09:54]} Nh5 {[%clk 01:04:10]} {[%emt 00:17:59]}
11. Be3 {[%clk 01:01:12]} {[%emt 00:04:44]} cxd4 {[%clk 01:01:36]} {[%emt
00:03:03]} 12. Nxd4 {[%clk 01:00:56]} {[%emt 00:00:47]} Nxd4 {[%clk 01:00:27]}
{[%emt 00:01:37]} 13. Qxd4 {[%clk 00:58:02]} {[%emt 00:03:24]} O-O {[%clk
00:59:03]} {[%emt 00:01:54]} 14. Ne4 {[%clk 00:52:25]} {[%emt 00:06:08]} Rd8
{[%clk 00:57:22]} {[%emt 00:02:10]} 15. Qb6 {[%clk 00:52:41]} {[%emt 00:00:15]}
Qe5 {[%clk 00:55:03]} {[%emt 00:02:48]} 16. Rad1 {[%clk 00:41:11]} {[%emt
00:12:01]} Bd7 {[%clk 00:42:39]} {[%emt 00:12:55]} 17. Qxb7 {[%clk 00:39:40]}
{[%emt 00:02:00]} Rab8 {[%clk 00:42:38]} {[%emt 00:00:31]} 18. Qa7 {[%clk
00:38:31]} {[%emt 00:01:38]} Qxe4 {[%clk 00:42:07]} {[%emt 00:01:01]} 19. Rxd7
{[%clk 00:38:30]} {[%emt 00:00:32]} Rxd7 {[%clk 00:42:09]} {[%emt 00:00:28]} 20.
Qxb8+ {[%clk 00:34:42]} {[%emt 00:04:18]} Rd8 {[%clk 00:40:21]} {[%emt
00:02:18]} 21. Qc7 {[%clk 00:33:18]} {[%emt 00:01:55]} Bf6 {[%clk 00:29:02]}
{[%emt 00:11:49]} 22. Bxa6 {[%clk 00:30:34]} {[%emt 00:03:13]} Qxa4 {[%clk
00:28:44]} {[%emt 00:00:47]} 23. Be2 {[%clk 00:30:32]} {[%emt 00:00:32]} Qh4
{[%clk 00:28:07]} {[%emt 00:01:07]} 24. g3 {[%clk 00:28:25]} {[%emt 00:02:38]}
Qh3 {[%clk 00:28:07]} {[%emt 00:00:30]} 25. g4 {[%clk 00:27:21]} {[%emt
00:01:34]} Rd5 {[%clk 00:26:20]} {[%emt 00:02:17]} 26. gxh5 {[%clk 00:27:11]}
{[%emt 00:00:40]} h6 {[%clk 00:26:18]} {[%emt 00:00:32]} 27. Qg3 {[%clk
00:25:02]} {[%emt 00:02:39]} Qf5 {[%clk 00:26:02]} {[%emt 00:00:46]} 28. c4
{[%clk 00:22:59]} {[%emt 00:02:33]} Ra5 {[%clk 00:24:25]} {[%emt 00:02:07]} 29.
Rd1 {[%clk 00:22:12]} {[%emt 00:01:17]} Ra8 {[%clk 00:22:47]} {[%emt 00:02:08]}
30. Qf3 {[%clk 00:21:53]} {[%emt 00:00:49]} Qa5 {[%clk 00:22:49]} {[%emt
00:00:27]} 31. b4 {[%clk 00:22:13]} {[%emt 00:00:11]} Qa4 {[%clk 00:22:14]}
{[%emt 00:01:04]} 32. c5 {[%clk 00:20:47]} {[%emt 00:01:57]} Rb8 {[%clk
00:22:12]} {[%emt 00:00:32]} 33. b5 {[%clk 00:20:53]} {[%emt 00:00:24]} Be5
{[%clk 00:22:20]} {[%emt 00:00:21]} 34. b6 {[%clk 00:19:59]} {[%emt 00:01:25]}
Qh4 {[%clk 00:22:37]} {[%emt 00:00:13]} 35. h3 {[%clk 00:20:07]} {[%emt
00:00:22]} f5 {[%clk 00:22:16]} {[%emt 00:00:51]} 36. c6 {[%clk 00:20:00]}
{[%emt 00:00:36]} f4 {[%clk 00:22:39]} {[%emt 00:00:07]} 37. c7 {[%clk
00:19:52]} {[%emt 00:00:39]} Rf8 {[%clk 00:22:30]} {[%emt 00:00:39]} 38. Bd4
{[%clk 00:19:48]} {[%emt 00:00:33]} Bxd4 {[%clk 00:22:20]} {[%emt 00:00:40]} 39.
Rxd4 {[%clk 00:20:14]} {[%emt 00:00:04]} e5 {[%clk 00:22:33]} {[%emt 00:00:17]}
40. Qd5+ {[%clk 00:19:14]} {[%emt 00:01:30]} Kh8 {[%clk 00:22:46]} {[%emt
00:00:18]} 41. Qd8 {[%clk 00:18:43]} {[%emt 00:01:01]} 1-0

[Event "TOP 12 FEMININ 2022 - Phase 1"]
[Site "MULHOUSE, France"]
[Date "2022.04.08"]
[Round "2.24"]
[White "SOREDA  CAN, Elisa"]
[Black "AFRAOUI CLI, Anaelle"]
[Result "0-1"]
[TimeControl "90 min +30 secondes par coup"]
[WhiteElo "1655"]
[BlackElo "2108"]

1. e4 {[%clk 01:30:47]} {[%emt 00:00:12]} c5 {[%clk 01:30:54]} {[%emt
00:00:07]} 2. Nc3 {[%clk 01:29:49]} {[%emt 00:01:28]} Nc6 {[%clk 01:31:02]}
{[%emt 00:00:21]} 3. f4 {[%clk 01:28:41]} {[%emt 00:01:39]} e6 {[%clk
01:30:24]} {[%emt 00:01:08]} 4. Nf3 {[%clk 01:26:07]} {[%emt 00:03:04]} d5
{[%clk 01:30:19]} {[%emt 00:00:35]} 5. exd5 {[%clk 01:10:02]} {[%emt 00:16:36]}
exd5 {[%clk 01:30:10]} {[%emt 00:00:38]} 6. d4 {[%clk 01:10:06]} {[%emt
00:00:25]} Nf6 {[%clk 01:25:35]} {[%emt 00:05:05]} 7. Qe2+ {[%clk 00:54:18]}
{[%emt 00:16:19]} Be7 {[%clk 01:23:27]} {[%emt 00:02:38]} 8. Be3 {[%clk
00:46:21]} {[%emt 00:08:27]} cxd4 {[%clk 01:18:42]} {[%emt 00:05:16]} 9. Bxd4
{[%clk 00:41:10]} {[%emt 00:05:40]} Nxd4 {[%clk 01:15:50]} {[%emt 00:03:22]} 10.
Nxd4 {[%clk 00:39:22]} {[%emt 00:02:18]} O-O {[%clk 01:16:03]} {[%emt
00:00:17]} 11. O-O-O {[%clk 00:35:04]} {[%emt 00:04:48]} Bg4 {[%clk 01:08:30]}
{[%emt 00:08:03]} 12. Nf3 {[%clk 00:33:51]} {[%emt 00:01:43]} Qc7 {[%clk
01:06:53]} {[%emt 00:02:06]} 13. g3 {[%clk 00:25:48]} {[%emt 00:08:34]} Bb4
{[%clk 01:01:25]} {[%emt 00:05:58]} 14. Nb5 {[%clk 00:16:56]} {[%emt 00:09:22]}
Qb6 {[%clk 00:53:37]} {[%emt 00:08:18]} 15. Qg2 {[%clk 00:08:05]} {[%emt
00:09:18]} Qe3+ {[%clk 00:52:44]} {[%emt 00:01:26]} 16. Nd2 {[%clk 00:07:58]}
{[%emt 00:00:37]} Bxd1 {[%clk 00:52:15]} {[%emt 00:00:59]} 17. Kxd1 {[%clk
00:08:04]} {[%emt 00:00:23]} Bxd2 {[%clk 00:52:12]} {[%emt 00:00:34]} 18. Qxd2
{[%clk 00:07:55]} {[%emt 00:00:38]} Qf3+ {[%clk 00:52:24]} {[%emt 00:00:18]}
0-1